fUST/lending_fUST_20250206
["ID","MTS","AMOUNT","RATE_DAILY","PERIOD"]
[351889426,1738829448307,-739.75,0.00014657,2]
[351889428,1738829448316,-7817.32761105,0.00014657,2]
[351889443,1738829448471,-500.0,0.00013698,2]
[351889445,1738829448480,-12.85629558,0.00013698,2]
[351889447,1738829448493,-363.67091481,0.00013698,2]
[351889459,1738829448596,-123.47278961,0.00013698,2]
[351889461,1738829448606,-500.0,0.00013698,2]
[351889463,1738829448616,-500.0,0.00013698,2]
[351889465,1738829448626,-539.02721039,0.00013835,2]
[351889468,1738829448639,-2809.79278961,0.00013835,2]
[351889470,1738829448648,-500.0,0.00013835,2]
[351889472,1738829448659,-500.0,0.00013835,2]
[351889474,1738829448668,-500.0,0.00013835,2]
[351889476,1738829448678,-12.66009689,0.00013835,2]
[351889478,1738829448690,-487.33990311,0.00013835,2]
[351889480,1738829448699,-279.91055466,0.00013972,2]
[351893813,1738829551346,160.0,0.00017391,120]
[351893817,1738829675407,825.31,0.0001,2]
[351893824,1738829848618,200.0,0.0001,3]
[351893825,1738829850760,160.0,0.00018689,120]
[351893827,1738829910815,160.0,0.00018564,120]
[351893831,1738829971556,160.0,0.00018256,120]
[351893834,1738830031372,160.0,0.00018612,120]
[351893835,1738830091305,160.0,0.00018956,120]
[351893837,1738830151319,160.0,0.00019224,120]
[351893841,1738830271863,160.0,0.00018729,120]
[351893842,1738830331350,160.0,0.00018001,120]
[351893844,1738830348148,-856.6173414,0.00012054,2]
[351893850,1738830356096,-343.3826586,0.00012054,2]
[351893851,1738830356118,-300.0,0.00012692,2]
[351893852,1738830356139,-421.21321173,0.00012693,2]
[351893864,1738830425101,-744.03591965,0.00012054,2]
[351893865,1738830426228,-255.96408035,0.00012054,2]
[351893866,1738830426251,-300.0,0.00012692,2]
[351893867,1738830426273,-146.41377799,0.00012693,2]
[351893870,1738830436100,-398.89307239,0.00012693,2]
[351893871,1738830440179,-379.65508247,0.00012693,2]
[351893872,1738830452131,-925.78471322,0.00012693,2]
[351893889,1738830545131,-900.0,0.00012054,2]
[351893890,1738830545154,-226.9216,0.00012566,2]
[351893891,1738830553159,-73.0784,0.00012566,2]
[351893892,1738830553180,-300.0,0.00012692,2]
[351893893,1738830553201,-22084.6236505,0.00012693,2]
[351893894,1738830553222,-366.99264518,0.00013424,2]
[351893895,1738830571086,-490.0,0.00013424,2]
[351893896,1738830630803,160.0,0.00017921,120]
[351893924,1738830631930,-43.00735482,0.00013424,2]
[351893925,1738830631940,-153.37470514,0.00013598,2]
[351893926,1738830631949,-3424.3390798,0.00013664,2]
[351893927,1738830631968,-414.3187998,0.00013664,2]
[351893928,1738830631989,-3600.03965318,0.00013664,2]
[351893929,1738830631998,-500.0,0.00013673,2]
[351893930,1738830632007,-300.0,0.00013696,2]
[351893931,1738830632017,-552.26226718,0.00013697,2]
[351893932,1738830632026,-500.0,0.00013697,2]
[351893933,1738830632035,-500.0,0.00013697,2]
[351893934,1738830632044,-200.0,0.00013697,2]
[351893935,1738830632054,-500.0,0.00013697,2]
[351893936,1738830632063,-187.87806795,0.00013697,2]
[351893937,1738830632075,-312.12193205,0.00013697,2]
[351893938,1738830632084,-36.76336771,0.00013697,2]
[351893939,1738830632095,-463.23663229,0.00013697,2]
[351893940,1738830632105,-23.25586771,0.00013697,2]
[351893941,1738830632121,-129.00378803,0.00013697,2]
[351893942,1738830632131,-500.0,0.00013697,2]
[351893943,1738830632140,-500.0,0.00013697,2]
[351893944,1738830632151,-500.0,0.00013697,2]
[351893945,1738830632160,-240.03025162,0.00013697,2]
[351893947,1738830632171,-259.96974838,0.00013697,2]
[351893948,1738830632181,-500.0,0.00013698,2]
[351893949,1738830632190,-636.12745261,0.00013698,2]
[351893950,1738830632199,-500.0,0.00013698,2]
[351893951,1738830632210,-500.0,0.00013698,2]
[351893952,1738830632219,-500.0,0.00013698,2]
[351893953,1738830632229,-500.0,0.00013698,2]
[351893954,1738830632239,-500.0,0.00013698,2]
[351893955,1738830632248,-479.0,0.00013698,2]
[351893956,1738830632257,-93.96032557,0.00013698,2]
[351893965,1738830637787,-406.03967443,0.00013698,2]
[351893966,1738830637799,-500.0,0.00013698,2]
[351893967,1738830637808,-500.0,0.00013698,2]
[351893968,1738830637818,-500.0,0.00013698,2]
[351893969,1738830637828,-500.0,0.00013698,2]
[351893970,1738830637838,-500.0,0.00013698,2]
[351893971,1738830637849,-500.0,0.00013698,2]
[351893972,1738830637859,-500.0,0.00013698,2]
[351893973,1738830637869,-504.51334697,0.00013698,2]
[351893974,1738830637880,-500.0,0.00013698,2]
[351893975,1738830637889,-501.56098355,0.00013698,2]
[351893976,1738830637900,-500.0,0.00013698,2]
[351893977,1738830637910,-500.0,0.00013698,2]
[351893978,1738830637919,-500.0,0.00013698,2]
[351893979,1738830637929,-500.0,0.00013698,2]
[351893980,1738830637938,-506.41,0.00013698,2]
[351893981,1738830637947,-500.0,0.00013698,2]
[351893982,1738830637956,-500.0,0.00013698,2]
[351893983,1738830637966,-500.0,0.00013698,2]
[351893984,1738830637975,-500.0,0.00013698,2]
[351893985,1738830637985,-500.0,0.00013698,2]
[351893986,1738830637995,-513.0,0.00013698,2]
[351893987,1738830638004,-500.0,0.00013698,2]
[351893988,1738830638013,-580.13711305,0.00013698,2]
[351893989,1738830638023,-500.0,0.00013698,2]
[351893990,1738830638032,-500.0,0.00013698,2]
[351893991,1738830638041,-442.85136452,0.00013698,2]
[351893992,1738830638050,-500.0,0.00013698,2]
[351893993,1738830638060,-500.0,0.00013698,2]
[351893994,1738830638252,-500.0,0.00013698,2]
[351893995,1738830638263,-500.0,0.00013698,2]
[351893996,1738830638273,-237.61177019,0.00013698,2]
[351893997,1738830638283,-217.66819443,0.00013698,2]
[351893998,1738830638296,-282.33180557,0.00013698,2]
[351893999,1738830638306,-1227.51,0.00013698,2]
[351894000,1738830638316,-500.0,0.00013698,2]
[351894001,1738830638325,-500.0,0.00013698,2]
[351894002,1738830638335,-500.0,0.00013698,2]
[351894003,1738830638345,-500.0,0.00013698,2]
[351894004,1738830638355,-500.0,0.00013698,2]
[351894005,1738830638365,-500.0,0.00013698,2]
[351894006,1738830638375,-60.53807175,0.00013698,2]
[351894007,1738830638387,-801.78192825,0.00013698,2]
[351894008,1738830638397,-500.0,0.00013698,2]
[351894009,1738830638408,-500.0,0.00013698,2]
[351894010,1738830638418,-500.0,0.00013698,2]
[351894011,1738830638428,-500.0,0.00013698,2]
[351894012,1738830638438,-500.0,0.00013698,2]
[351894013,1738830638448,-500.0,0.00013698,2]
[351894014,1738830638458,-500.0,0.00013698,2]
[351894015,1738830638467,-500.0,0.00013698,2]
[351894016,1738830638477,-588.28,0.00013698,2]
[351894017,1738830638486,-500.0,0.00013698,2]
[351894018,1738830638496,-500.0,0.00013698,2]
[351894019,1738830638505,-500.0,0.00013698,2]
[351894020,1738830638515,-500.0,0.00013698,2]
[351894021,1738830638524,-500.0,0.00013698,2]
[351894022,1738830638534,-500.0,0.00013698,2]
[351894023,1738830638544,-500.0,0.00013698,2]
[351894024,1738830638553,-500.0,0.00013698,2]
[351894025,1738830638562,-644.59,0.00013698,2]
[351894026,1738830638571,-500.0,0.00013698,2]
[351894027,1738830638581,-500.0,0.00013698,2]
[351894028,1738830638590,-500.0,0.00013698,2]
[351894029,1738830638600,-500.0,0.00013698,2]
[351894030,1738830638609,-500.0,0.00013698,2]
[351894031,1738830638619,-500.0,0.00013698,2]
[351894032,1738830638628,-500.0,0.00013698,2]
[351894033,1738830638638,-770.28,0.00013698,2]
[351894034,1738830638647,-500.0,0.00013698,2]
[351894035,1738830638659,-500.0,0.00013698,2]
[351894036,1738830638668,-500.0,0.00013698,2]
[351894037,1738830638678,-500.0,0.00013698,2]
[351894038,1738830638687,-500.0,0.00013698,2]
[351894039,1738830638697,-500.0,0.00013698,2]
[351894040,1738830638706,-500.0,0.00013698,2]
[351894041,1738830638716,-555.92,0.00013698,2]
[351894042,1738830638725,-514.94,0.00013698,2]
[351894043,1738830638735,-447.54132228,0.00013698,2]
[351894044,1738830638744,-1058.7,0.00013698,2]
[351894045,1738830638754,-519.25564087,0.00013698,2]
[351894046,1738830638764,-533.45,0.00013698,2]
[351894047,1738830638773,-500.0,0.00013698,2]
[351894048,1738830638783,-416.8526996,0.00013698,2]
[351894049,1738830638798,-500.0,0.00013698,2]
[351894050,1738830638815,-500.0,0.00013698,2]
[351894051,1738830638825,-500.0,0.00013698,2]
[351894052,1738830638836,-500.0,0.00013698,2]
[351894053,1738830638846,-500.0,0.00013698,2]
[351894054,1738830638855,-500.0,0.00013698,2]
[351894055,1738830638865,-500.0,0.00013698,2]
[351894056,1738830638875,-500.0,0.00013698,2]
[351894057,1738830638885,-500.0,0.00013698,2]
[351894058,1738830638894,-500.0,0.00013698,2]
[351894059,1738830638904,-500.0,0.00013698,2]
[351894060,1738830638913,-500.0,0.00013698,2]
[351894061,1738830638922,-506.19836677,0.00013698,2]
[351894062,1738830638932,-936.17,0.00013698,2]
[351894063,1738830638941,-500.0,0.00013698,2]
[351894064,1738830638950,-500.0,0.00013698,2]
[351894065,1738830638959,-500.0,0.00013698,2]
[351894066,1738830638969,-500.0,0.00013698,2]
[351894067,1738830638978,-701.02,0.00013698,2]
[351894068,1738830638987,-500.0,0.00013698,2]
[351894069,1738830638997,-500.0,0.00013698,2]
[351894070,1738830639006,-319.07390484,0.00013698,2]
[351894071,1738830639016,-500.0,0.00013698,2]
[351894072,1738830639025,-500.0,0.00013698,2]
[351894073,1738830639034,-1028.5,0.00013698,2]
[351894074,1738830639045,-500.0,0.00013698,2]
[351894075,1738830639054,-500.0,0.00013698,2]
[351894076,1738830639064,-1162.68,0.00013698,2]
[351894077,1738830639073,-500.0,0.00013698,2]
[351894078,1738830639083,-500.0,0.00013698,2]
[351894079,1738830639092,-473.40930979,0.00013698,2]
[351894080,1738830639102,-637.29,0.00013698,2]
[351894081,1738830639112,-500.0,0.00013698,2]
[351894082,1738830639121,-500.0,0.00013698,2]
[351894083,1738830639131,-500.0,0.00013698,2]
[351894084,1738830639140,-500.0,0.00013698,2]
[351894085,1738830639151,-14910.05,0.00013698,2]
[351894086,1738830639160,-598.64,0.00013698,2]
[351894087,1738830639170,-500.0,0.00013698,2]
[351894088,1738830639180,-500.0,0.00013698,2]
[351894089,1738830639190,-1525.62,0.00013698,2]
[351894090,1738830639200,-728.43,0.00013698,2]
[351894091,1738830639210,-500.0,0.00013698,2]
[351894092,1738830639219,-500.0,0.00013698,2]
[351894093,1738830639229,-500.0,0.00013698,2]
[351894094,1738830639240,-835.65,0.00013698,2]
[351894095,1738830639250,-500.0,0.00013698,2]
[351894096,1738830639259,-500.0,0.00013698,2]
[351894097,1738830639269,-2540.5,0.00013698,2]
[351894098,1738830639279,-500.0,0.00013698,2]
[351894100,1738830639289,-1406.21,0.00013698,2]
[351894101,1738830639298,-500.0,0.00013698,2]
[351894103,1738830639308,-500.0,0.00013698,2]
[351894106,1738830639318,-1238.74,0.00013698,2]
[351894108,1738830639328,-626.73,0.00013698,2]
[351894109,1738830639337,-500.0,0.00013698,2]
[351894111,1738830639347,-218.20291883,0.00013698,2]
[351894113,1738830639361,-281.79708117,0.00013698,2]
[351894114,1738830639370,-2627.15,0.00013698,2]
[351894115,1738830639380,-458.03750117,0.00013698,2]
[351894116,1738830639392,-41.96249883,0.00013698,2]
[351894117,1738830639402,-154.07922469,0.00013698,2]
[351894118,1738830639411,-500.0,0.00013698,2]
[351894119,1738830639421,-508.11,0.00013698,2]
[351894121,1738830639431,-500.0,0.00013698,2]
[351894123,1738830639441,-11539.52,0.00013698,2]
[351894125,1738830639450,-500.0,0.00013698,2]
[351894127,1738830639460,-1130.75,0.00013698,2]
[351894129,1738830639470,-500.0,0.00013698,2]
[351894131,1738830639480,-500.0,0.00013698,2]
[351894132,1738830639490,-2992.27,0.00013698,2]
[351894133,1738830639499,-811.81,0.00013698,2]
[351894134,1738830639509,-500.0,0.00013698,2]
[351894135,1738830639519,-500.0,0.00013698,2]
[351894136,1738830639528,-500.0,0.00013698,2]
[351894137,1738830639538,-1176.79,0.00013698,2]
[351894138,1738830639548,-600.5844107,0.00013698,2]
[351894139,1738830639558,-500.0,0.00013698,2]
[351894140,1738830639567,-944.65,0.00013698,2]
[351894141,1738830639576,-500.0,0.00013698,2]
[351894142,1738830639586,-2882.5,0.00013698,2]
[351894143,1738830639595,-500.0,0.00013698,2]
[351894144,1738830639605,-504.50185385,0.00013698,2]
[351894146,1738830639614,-500.0,0.00013698,2]
[351894148,1738830639623,-6622.41,0.00013698,2]
[351894149,1738830639633,-500.0,0.00013698,2]
[351894150,1738830639643,-1175.33,0.00013698,2]
[351894151,1738830639652,-500.0,0.00013698,2]
[351894152,1738830639662,-963.23,0.00013698,2]
[351894153,1738830639672,-500.0,0.00013698,2]
[351894154,1738830639681,-500.0,0.00013698,2]
[351894155,1738830639691,-500.0,0.00013698,2]
[351894156,1738830639701,-500.0,0.00013698,2]
[351894157,1738830639711,-621.13187448,0.00013698,2]
[351894158,1738830639721,-500.0,0.00013698,2]
[351894159,1738830639730,-500.0,0.00013698,2]
[351894160,1738830639739,-34307.6,0.00013698,2]
[351894161,1738830639748,-1391.62,0.00013698,2]
[351894162,1738830639758,-1805.15,0.00013698,2]
[351894163,1738830639767,-548.4,0.00013698,2]
[351894164,1738830639776,-500.0,0.00013698,2]
[351894165,1738830639786,-3532.43,0.00013698,2]
[351894166,1738830639798,-649.87,0.00013698,2]
[351894167,1738830639808,-2696.39,0.00013698,2]
[351894168,1738830639817,-1105.22,0.00013698,2]
[351894169,1738830639827,-500.0,0.00013698,2]
[351894170,1738830639837,-500.0,0.00013698,2]
[351894171,1738830639847,-1723.85,0.00013698,2]
[351894172,1738830639857,-500.0,0.00013698,2]
[351894173,1738830639867,-500.0,0.00013698,2]
[351894175,1738830639877,-1688.46,0.00013698,2]
[351894176,1738830639886,-500.0,0.00013698,2]
[351894177,1738830639896,-500.0,0.00013698,2]
[351894178,1738830639906,-500.0,0.00013698,2]
[351894179,1738830639915,-500.0,0.00013698,2]
[351894180,1738830639924,-500.0,0.00013698,2]
[351894182,1738830639934,-500.0,0.00013698,2]
[351894184,1738830639943,-417.62662071,0.00013698,2]
[351894185,1738830639953,-553.94,0.00013698,2]
[351894187,1738830639962,-500.0,0.00013698,2]
[351894189,1738830639971,-1448.84,0.00013698,2]
[351894190,1738830639980,-500.0,0.00013698,2]
[351894191,1738830639989,-1550.13,0.00013698,2]
[351894192,1738830639998,-500.0,0.00013698,2]
[351894193,1738830640007,-1329.65,0.00013698,2]
[351894194,1738830640017,-504.47189125,0.00013698,2]
[351894195,1738830640026,-500.0,0.00013698,2]
[351894196,1738830640036,-1133.75,0.00013698,2]
[351894197,1738830640045,-1849.8,0.00013698,2]
[351894198,1738830640055,-501.4,0.00013698,2]
[351894199,1738830640064,-500.0,0.00013698,2]
[351894200,1738830640074,-1110.39,0.00013698,2]
[351894201,1738830640089,-500.0,0.00013698,2]
[351894202,1738830640102,-483.6855893,0.00013698,2]
[351894203,1738830640114,-582.81,0.00013698,2]
[351894204,1738830640125,-561.13,0.00013698,2]
[351894205,1738830640136,-500.0,0.00013698,2]
[351894206,1738830640146,-500.0,0.00013698,2]
[351894207,1738830640160,-501.57565455,0.00013698,2]
[351894208,1738830640172,-500.0,0.00013698,2]
[351894209,1738830640183,-500.0,0.00013698,2]
[351894210,1738830640195,-3440.22,0.00013698,2]
[351894211,1738830640208,-500.0,0.00013698,2]
[351894212,1738830640220,-4547.26,0.00013698,2]
[351894213,1738830640232,-603.95,0.00013698,2]
[351894214,1738830640244,-500.0,0.00013698,2]
[351894215,1738830640255,-500.0,0.00013698,2]
[351894216,1738830640267,-8316.26,0.00013698,2]
[351894217,1738830640278,-1380.24,0.00013698,2]
[351894218,1738830640288,-500.0,0.00013698,2]
[351894219,1738830640298,-500.0,0.00013698,2]
[351894220,1738830640309,-173.156999,0.00013699,2]
[351894221,1738830640321,-500.0,0.00013699,2]
[351894222,1738830640334,-500.0,0.00013699,2]
[351894223,1738830640345,-500.0,0.00013699,2]
[351894224,1738830640357,-601.62340716,0.00013699,2]
[351894225,1738830640368,-500.0,0.00013699,2]
[351894226,1738830640380,-500.0,0.00013699,2]
[351894227,1738830640392,-500.0,0.00013699,2]
[351894228,1738830640404,-500.0,0.00013699,2]
[351894229,1738830640416,-500.0,0.00013699,2]
[351894230,1738830640428,-412.9897758,0.00013699,2]
[351894231,1738830640439,-500.0,0.00013699,2]
[351894232,1738830640450,-500.0,0.00013699,2]
[351894233,1738830640461,-500.0,0.00013699,2]
[351894234,1738830640474,-500.0,0.00013699,2]
[351894235,1738830640485,-500.0,0.00013699,2]
[351894236,1738830640497,-500.0,0.00013699,2]
[351894237,1738830640508,-500.0,0.00013699,2]
[351894238,1738830640519,-500.0,0.00013699,2]
[351894239,1738830640530,-500.0,0.00013699,2]
[351894240,1738830640540,-500.0,0.00013699,2]
[351894241,1738830640551,-500.0,0.00013699,2]
[351894242,1738830640563,-500.0,0.00013699,2]
[351894243,1738830640575,-500.0,0.00013699,2]
[351894244,1738830640586,-500.0,0.00013699,2]
[351894245,1738830640598,-500.0,0.00013699,2]
[351894246,1738830640608,-500.0,0.00013699,2]
[351894247,1738830640619,-500.0,0.00013699,2]
[351894248,1738830640630,-500.0,0.00013699,2]
[351894249,1738830640640,-500.0,0.00013699,2]
[351894250,1738830640650,-500.0,0.00013699,2]
[351894251,1738830640661,-500.0,0.00013699,2]
[351894252,1738830640671,-500.0,0.00013699,2]
[351894253,1738830640682,-500.0,0.00013699,2]
[351894254,1738830640695,-500.0,0.00013699,2]
[351894255,1738830640707,-500.0,0.00013699,2]
[351894256,1738830640717,-500.0,0.00013699,2]
[351894257,1738830640727,-257.87894332,0.00013699,2]
[351894258,1738830640738,-500.0,0.00013699,2]
[351894259,1738830640748,-500.0,0.00013699,2]
[351894260,1738830640758,-500.0,0.00013699,2]
[351894261,1738830640769,-500.0,0.00013699,2]
[351894262,1738830640781,-500.0,0.00013699,2]
[351894263,1738830640794,-500.0,0.00013699,2]
[351894264,1738830640805,-166.09263918,0.00013699,2]
[351894265,1738830640815,-500.0,0.00013699,2]
[351894266,1738830640826,-166.09263918,0.00013699,2]
[351894267,1738830640838,-500.0,0.00013699,2]
[351894268,1738830640849,-166.09263918,0.00013699,2]
[351894269,1738830640860,-500.0,0.00013699,2]
[351894270,1738830640873,-500.0,0.00013699,2]
[351894271,1738830640885,-590.97798174,0.00013699,2]
[351894272,1738830640895,-500.0,0.00013699,2]
[351894273,1738830640906,-500.0,0.00013699,2]
[351894274,1738830640917,-500.0,0.00013699,2]
[351894275,1738830640929,-500.0,0.00013699,2]
[351894276,1738830640940,-500.0,0.00013699,2]
[351894277,1738830640951,-500.0,0.00013699,2]
[351894278,1738830640962,-500.0,0.00013699,2]
[351894279,1738830640972,-500.0,0.00013699,2]
[351894280,1738830640982,-500.0,0.00013699,2]
[351894281,1738830640993,-153.37470512,0.00013701,2]
[351894282,1738830641003,-200.0,0.000138,4]
[351894283,1738830641014,-200.0,0.000138,6]
[351894284,1738830641024,-200.0,0.000138,4]
[351894285,1738830641035,-200.0,0.000138,3]
[351894286,1738830641046,-200.0,0.000138,7]
[351894287,1738830641057,-200.0,0.000138,4]
[351894288,1738830641068,-200.0,0.000138,5]
[351894289,1738830641079,-200.0,0.000138,6]
[351894290,1738830641090,-200.0,0.000138,7]
[351894291,1738830641100,-200.0,0.000138,8]
[351894292,1738830641111,-198997.0,0.000138,2]
[351894293,1738830641122,-153.37470512,0.00013804,2]
[351894294,1738830641133,-1639.29280817,0.00013813,2]
[351894295,1738830641144,-500.0,0.00013835,2]
[351894296,1738830641156,-500.0,0.00013835,2]
[351894297,1738830641166,-500.0,0.00013835,2]
[351894298,1738830641177,-500.0,0.00013835,2]
[351894299,1738830641187,-500.0,0.00013835,2]
[351894300,1738830641198,-500.0,0.00013835,2]
[351894301,1738830641209,-500.0,0.00013835,2]
[351894302,1738830641219,-506.41,0.00013835,2]
[351894303,1738830641230,-500.0,0.00013835,2]
[351894304,1738830641241,-500.0,0.00013835,2]
[351894305,1738830641252,-500.0,0.00013835,2]
[351894306,1738830641262,-500.0,0.00013835,2]
[351894307,1738830641274,-500.0,0.00013835,2]
[351894308,1738830641284,-500.0,0.00013835,2]
[351894309,1738830641295,-1227.51,0.00013835,2]
[351894310,1738830641306,-500.0,0.00013835,2]
[351894311,1738830641317,-500.0,0.00013835,2]
[351894312,1738830641328,-500.0,0.00013835,2]
[351894313,1738830641339,-862.32,0.00013835,2]
[351894314,1738830641350,-500.0,0.00013835,2]
[351894315,1738830641361,-500.0,0.00013835,2]
[351894316,1738830641372,-500.0,0.00013835,2]
[351894317,1738830641383,-588.28,0.00013835,2]
[351894318,1738830641394,-500.0,0.00013835,2]
[351894319,1738830641405,-308.70379889,0.00013835,2]
[351894320,1738830641415,-500.0,0.00013835,2]
[351894321,1738830641426,-500.0,0.00013835,2]
[351894322,1738830641437,-500.0,0.00013835,2]
[351894323,1738830641447,-644.59,0.00013835,2]
[351894324,1738830641458,-500.0,0.00013835,2]
[351894325,1738830641468,-500.0,0.00013835,2]
[351894326,1738830641479,-500.0,0.00013835,2]
[351894327,1738830641490,-770.28,0.00013835,2]
[351894328,1738830641500,-500.0,0.00013835,2]
[351894329,1738830641511,-500.0,0.00013835,2]
[351894330,1738830641522,-500.0,0.00013835,2]
[351894331,1738830641532,-555.92,0.00013835,2]
[351894332,1738830641543,-1058.7,0.00013835,2]
[351894333,1738830641555,-533.45,0.00013835,2]
[351894334,1738830641566,-514.94,0.00013835,2]
[351894335,1738830641577,-500.0,0.00013835,2]
[351894336,1738830641593,-500.0,0.00013835,2]
[351894337,1738830641603,-500.0,0.00013835,2]
[351894338,1738830641613,-500.0,0.00013835,2]
[351894339,1738830641624,-500.0,0.00013835,2]
[351894340,1738830641634,-500.0,0.00013835,2]
[351894341,1738830641645,-500.0,0.00013835,2]
[351894342,1738830641655,-500.0,0.00013835,2]
[351894343,1738830641666,-936.17,0.00013835,2]
[351894344,1738830641676,-500.0,0.00013835,2]
[351894345,1738830641686,-500.0,0.00013835,2]
[351894346,1738830641697,-500.0,0.00013835,2]
[351894347,1738830641707,-701.02,0.00013835,2]
[351894348,1738830641717,-500.0,0.00013835,2]
[351894349,1738830641727,-500.0,0.00013835,2]
[351894350,1738830641738,-500.0,0.00013835,2]
[351894351,1738830641748,-1028.5,0.00013835,2]
[351894352,1738830641759,-500.0,0.00013835,2]
[351894353,1738830641769,-500.0,0.00013835,2]
[351894354,1738830641779,-1162.68,0.00013835,2]
[351894355,1738830641791,-500.0,0.00013835,2]
[351894356,1738830641805,-500.0,0.00013835,2]
[351894357,1738830641815,-637.29,0.00013835,2]
[351894358,1738830641826,-500.0,0.00013835,2]
[351894359,1738830641837,-500.0,0.00013835,2]
[351894360,1738830641847,-500.0,0.00013835,2]
[351894361,1738830641858,-12030.03076113,0.00013835,2]
[351894362,1738830642227,-2880.01923887,0.00013835,2]
[351894363,1738830642238,-598.64,0.00013835,2]
[351894364,1738830642247,-500.0,0.00013835,2]
[351894365,1738830642257,-500.0,0.00013835,2]
[351894366,1738830642266,-1525.62,0.00013835,2]
[351894367,1738830642276,-728.43,0.00013835,2]
[351894368,1738830642285,-500.0,0.00013835,2]
[351894369,1738830642295,-500.0,0.00013835,2]
[351894370,1738830642304,-500.0,0.00013835,2]
[351894371,1738830642314,-835.65,0.00013835,2]
[351894372,1738830642324,-500.0,0.00013835,2]
[351894373,1738830642333,-295.94201813,0.00013835,2]
[351894374,1738830642355,-204.05798187,0.00013835,2]
[351894376,1738830642366,-2540.5,0.00013835,2]
[351894377,1738830642375,-500.0,0.00013835,2]
[351894378,1738830642384,-1406.21,0.00013835,2]
[351894379,1738830642394,-500.0,0.00013835,2]
[351894380,1738830642405,-1238.74,0.00013835,2]
[351894382,1738830642415,-626.73,0.00013835,2]
[351894383,1738830642425,-500.0,0.00013835,2]
[351894385,1738830642435,-500.0,0.00013835,2]
[351894387,1738830642445,-2627.15,0.00013835,2]
[351894390,1738830642455,-500.0,0.00013835,2]
[351894391,1738830642465,-508.11,0.00013835,2]
[351894392,1738830642474,-11539.52,0.00013835,2]
[351894393,1738830642484,-500.0,0.00013835,2]
[351894394,1738830642494,-1130.75,0.00013835,2]
[351894395,1738830642503,-500.0,0.00013835,2]
[351894396,1738830642512,-2992.27,0.00013835,2]
[351894397,1738830642521,-811.81,0.00013835,2]
[351894398,1738830642531,-500.0,0.00013835,2]
[351894399,1738830642540,-500.0,0.00013835,2]
[351894400,1738830642550,-1176.79,0.00013835,2]
[351894401,1738830642559,-500.0,0.00013835,2]
[351894402,1738830642569,-944.65,0.00013835,2]
[351894403,1738830642578,-500.0,0.00013835,2]
[351894404,1738830642587,-2882.5,0.00013835,2]
[351894405,1738830642597,-500.0,0.00013835,2]
[351894406,1738830642607,-500.0,0.00013835,2]
[351894407,1738830642618,-6622.41,0.00013835,2]
[351894408,1738830642628,-500.0,0.00013835,2]
[351894409,1738830642638,-1175.33,0.00013835,2]
[351894410,1738830642648,-963.23,0.00013835,2]
[351894411,1738830642663,-500.0,0.00013835,2]
[351894412,1738830642673,-229.5921136,0.00013835,2]